Cogmind - Beta 14 @@@ ROGUE MODE // 2024.09.08 @ 17:33:50 Player: Helstads_dog Result: Self-destructed Performance ------------- Evolutions (1) 500 Regions Visited (3) 600 Robots Destroyed (78) 390 Value Destroyed (2369) 2369 Prototype IDs (11) 220 Alien Tech Used (0) 0 Bonus (22) 22 TOTAL SCORE: 4101 Bonus ------- High Alert Combat Kills 22 Cogmind --------- Core Integrity 115/400 Matter 289/300 Energy 265/265 System Corruption 1% Temperature Cool (0) Movement Rolling (145) Ox3 Location -9/Storage Parts ------- > --- POWER (1) -------- Improved Ion Engine > --- PROPULSION (2) --- Improved Treads Compact Wheel > --- UTILITY (2) ------ Improved Heat Sink High-capacity Storage Unit > --- WEAPON (4) ------- Beam Rifle Beam Rifle Light Assault Rifle Heavy Assault Rifle > --- INVENTORY (20) --- Improved Ion Engine Improved Treads Improved Treads Compact Wheel Heat Sink Disposable Heat Sink High-capacity Matter Pod (200) Signal Interpreter Medium Armor Plating Medium Armor Plating Medium Armor Plating Authchip [R/Combat] Beam Rifle Spread Laser Spread Laser Improved Medium Laser Light Assault Rifle Heavy Assault Rifle Rocket Launcher Heavy Hammer Peak State ------------ > --- POWER ------------ Ion Engine > --- PROPULSION ------- Light Treads Wheel > --- UTILITY ---------- Improved Heat Sink High-capacity Storage Unit > --- WEAPON ----------- Improved EM Shotgun Beam Rifle Spread Laser Heavy Assault Rifle > --- INVENTORY -------- Light Ion Engine Light Treads Wheel Heat Sink Huge Storage Unit High-capacity Matter Pod Signal Interpreter Signal Interpreter Medium Armor Plating Medium Armor Plating Medium Armor Plating Hacking Suite Heavy EM Pulse Gun Spread Laser Ion Cannon Light Assault Rifle Light Assault Rifle Rocket Launcher Heavy Hammer [Rating: 19] Favorites ----------- Power Ion Engine Engine Ion Engine Propulsion Light Treads Treads Light Treads Leg Aluminum Leg Wheel Wheel Utility Improved Heat Sink Device Improved Heat Sink Storage High-capacity Storage Unit Processor Signal Interpreter Hackware Authchip [Power] Weapon Light Assault Rifle Energy Gun Spread Laser Energy Cannon Ion Cannon Ballistic Gun Light Assault Rifle Launcher Rocket Launcher Build | -11 -10 -9 -9 ------- Run | Yrd Mat Mat Sto Slots Evolved 2 | . . 2 . Power . | . . . . Propulsion . | . . . . Utility . | . . . . Weapon 2 | . . 2 . Parts Attached 59 | . 17 27 15 Power 7 | . 3 3 1 Engine 7 | . 3 3 1 Core . | . . . . Reactor . | . . . . Propulsion 15 | . 4 8 3 Treads 7 | . 1 4 2 Leg 1 | . 1 . . Wheel 7 | . 2 4 1 Hover . | . . . . Flight . | . . . . Utility 13 | . 4 3 6 Device 7 | . 2 2 3 Storage 4 | . 2 1 1 Processor 1 | . . . 1 Hackware 1 | . . . 1 Protection . | . . . . Artifact . | . . . . Weapon 24 | . 6 13 5 Energy Gun 13 | . 4 7 2 Energy Cannon 1 | . . 1 . Ballistic Gun 8 | . 2 4 2 Ballistic Cannon . | . . . . Launcher 2 | . . 1 1 Special Weapon . | . . . . Impact Weapon . | . . . . Slashing Weapon . | . . . . Piercing Weapon . | . . . . Special Melee Weapon . | . . . . Unidentified Prototypes 2 | . . 2 . Parts Lost 9 | . 5 3 1 Power 1 | . 1 . . Propulsion 3 | . 1 2 . Utility 1 | . 1 . . Weapon 4 | . 2 1 1 Highest Loss Streak 3 | . 3 2 1 To Critical Strikes . | . . . . Average Slot Usage (%) 99 | . 98 99 99 Engine 11 | . 13 11 11 Treads 10 | . 9 11 11 Leg 3 | . 10 . . Wheel 10 | . 8 10 11 Device 11 | . 13 11 10 Storage 11 | . 14 11 11 Energy Gun 20 | . 11 26 22 Ballistic Gun 18 | . 16 16 21 Peak Build Rating 19 | . 11 19 19 Average Rating 13 | . 8 15 18 On Entrance 10 | 6 6 11 18 Naked Turns . | . . . . Heaviest Build 91 | 11 91 57 58 Greatest Support 20 | 20 20 20 16 Greatest Overweight (x) 5 | . 5 5 5 Average Overweight (x) 3 | . 1 3 4 Largest Inventory Capacity 25 | . 25 20 20 Average Capacity 17 | . 15 17 20 Most Carried 20 | . 15 20 20 Average Carried 15 | . 10 16 19 Final Capacity 20 | 8 15 20 20 Final Carried 20 | 6 15 19 20 Class Distribution -------------------- 56% | Scavenger-Gunner 17% | Mutant 14% | Scavenger-Mutant 11% | Gunner Dominant Class ---------------- Mutant | -10/Materials Scavenger-Gunner | -9/Materials Scavenger-Gunner | -9/Storage Resources | -11 -10 -9 -9 ----------- Run | Yrd Mat Mat Sto Matter Collected 1460 | 200 499 432 329 Remotely . | . . . . Salvage Created 2851 | . 623 1052 1176 Parts 173 | . 36 65 72 Haulers Intercepted . | . . . . Recyclers Shooed 4 | . 2 1 1 Parts Field Recycled . | . . . . Retrieved Matter . | . . . . Parts Self-Destructed . | . . . . Prevented . | . . . . Kills | -11 -10 -9 -9 ------- Run | Yrd Mat Mat Sto Combat Hostiles Destroyed 59 | . 15 24 20 Guns 57 | . 15 23 19 AOE 2 | . . 1 1 Classes Destroyed 10 | . 3 7 . Builder 2 | . . 2 . Recycler 4 | . . 2 2 Mechanic 1 | . . 1 . Operator 2 | . . 1 1 Watcher 10 | . 3 5 2 Swarmer 8 | . 2 3 3 Grunt 31 | . 13 13 5 Brawler 2 | . . 1 1 Duelist 1 | . . 1 . Sentry 17 | . . 6 11 Best Kill Streak 6 | . 3 5 6 Combat Bots Only 6 | . 3 5 6 Max Kills in Single Turn 2 | . 1 2 1 Gunslinging 1 | . . 1 . Exploded 1 | . . 1 1 Melee . | . . . . Uniques/NPCs Destroyed . | . . . . Combat | -11 -10 -9 -9 -------- Run | Yrd Mat Mat Sto Hostile Shots Fired 228 | . 95 84 49 Missed 63 | . 25 21 17 Damage Taken 2323 | . 972 869 482 Core 504 | . 219 161 124 Absorbed by Shields . | . . . . Core Remaining (%) 56 | 100 12 . . Volleys Fired 183 | . 77 63 43 Largest 4 | . 2 4 4 Hottest 215 | . 130 215 155 Shots Fired 533 | . 152 216 165 Gun 529 | . 152 213 164 Cannon 3 | . . 3 . Launcher 1 | . . . 1 Special . | . . . . Kinetic 264 | . 104 80 80 Thermal 229 | . 48 131 50 Explosive 1 | . . . 1 Electromagnetic 39 | . . 5 34 Robot Hit Streak 20 | . 15 17 20 Robot Miss Streak 11 | . 6 11 6 Penetration Max . | . . . . Secondary Targets 9 | . 4 4 1 Max Gunslinging Chain 2 | . 1 2 1 Shots Hit Robots 332 | . 100 140 92 Core Hits 213 | . 35 137 41 Critical Kills . | . . . . Critical Parts Destroyed 2 | . 1 . 1 Critical Strikes 7 | . 3 1 3 Burn 5 | . 2 1 2 Destroy 2 | . 1 . 1 Melee Attacks . | . . . . Impact . | . . . . Slashing . | . . . . Piercing . | . . . . Sneak Attacks . | . . . . Combat Hostiles . | . . . . Follow-up Attacks . | . . . . Damage Inflicted 4582 | . 1226 1888 1468 Guns 4305 | . 1218 1780 1307 Cannons 22 | . . 22 . Explosions 244 | . . 83 161 Melee . | . . . . Ramming 11 | . 8 3 . Kinetic 1373 | . 709 267 397 Thermal 2641 | . 509 1511 621 Explosive . | . . . . Electromagnetic 557 | . . 107 450 Impact . | . . . . Slashing . | . . . . Piercing . | . . . . Highest Corruption 1 | . . 1 1 Average Corruption 1 | . . 1 1 Corruption Purged . | . . . . Corruption Blocked . | . . . . Effects 9 | . . . 9 Message Errors 3 | . . . 3 Matter Fused 2 | . . . 2 Heat Flow Errors 1 | . . . 1 Energy Discharges 1 | . . . 1 Data Loss (minor) 2 | . . . 2 Overload Shots . | . . . . Overflow Damage . | . . . . Projectiles . | . . . . Explosions . | . . . . Melee . | . . . . Knockbacks . | . . . . Impact . | . . . . Kinetic . | . . . . Secondary . | . . . . Self-Inflicted Damage 131 | . . 87 44 Shots 5 | . . 4 1 Rammed 1 | . . 1 . Targets Rammed 5 | . 3 2 . Kicked 3 | . 3 . . Crushed 1 | . . 1 . Highest Temperature 366 | . 112 366 223 Average Temperature 84 | . 47 118 45 Received Heat Transfer 822 | . 456 252 114 Effects 3 | . . 3 . Shutdowns 1 | . . 1 . Interference 2 | . . 2 . Siege Activations . | . . . . Robots Corrupted . | . . . . Combat Hostiles . | . . . . Parts Fried 1 | . . . 1 Impact Corruptions . | . . . . Robots Melted . | . . . . Combat Hostiles . | . . . . Parts Melted 3 | . 1 . 2 Heat Transferred 4969 | . 1478 2083 1408 Parts Sabotaged . | . . . . Parts Stolen . | . . . . Parts Stripped . | . . . . Power Chain Reactions 5 | . . 2 3 Alert | -11 -10 -9 -9 ------- Run | Yrd Mat Mat Sto Peak Influence 434 | . 243 394 434 Initial 59 | . . 28 59 Average 215 | . 111 242 293 Maximum Alert Level 2 | . 1 1 2 Low Security (%) 44 | . 94 23 16 Level 1 53 | . 5 76 75 Level 2 2 | . . . 8 Level 3 . | . . . . Level 4 . | . . . . Level 5 . | . . . . High Security . | . . . . Max Security . | . . . . Squads Dispatched 8 | . 3 2 3 Investigation 3 | . 2 1 . Extermination . | . . . . Reinforcement 2 | . 1 1 . Assault . | . . . . Garrison 3 | . . . 3 Intercept . | . . . . Searches Triggered . | . . . . Construction Impeded . | . . . . Haulers Reinforced . | . . . . Active Scanning Responses . | . . . . Cargo Convoy Interrupts . | . . . . Stealth | -11 -10 -9 -9 --------- Run | Yrd Mat Mat Sto Distress Signals 5 | . 3 1 1 Communications Jammed . | . . . . Distress Signals . | . . . . Times Spotted 92 | . 26 42 24 Peak Tracking Total 6 | . 4 6 5 Tactical Retreats 4 | . . 2 2 Traps | -11 -10 -9 -9 ------- Run | Yrd Mat Mat Sto Traps Triggered 7 | . 4 3 . Indirectly . | . . . . Trap Hack Attempts . | . . . . Triggered . | . . . . Disarmed . | . . . . Reprogrammed . | . . . . Reused . | . . . . Traps Extracted . | . . . . Installed . | . . . . Triggered . | . . . . Machines | -11 -10 -9 -9 ---------- Run | Yrd Mat Mat Sto Machines Disabled 6 | . . 2 4 Max in Single Turn 2 | . . 2 1 Machines Repaired . | . . . . Machines Dismantled . | . . . . Machines Sabotaged . | . . . . Overloaded Fab Kills . | . . . . Hacking | -11 -10 -9 -9 --------- Run | Yrd Mat Mat Sto Machines Accessed 33 | . 9 11 13 Terminals 29 | . 7 10 12 Fabricators . | . . . . Repair Stations . | . . . . Recycling Units 3 | . 2 . 1 Scanalyzers 1 | . . 1 . Garrison Access . | . . . . Total Hacks 90 | . 21 42 27 Successful 49 | . 13 22 14 Failed 39 | . 7 19 13 Catastrophic 7 | . 1 3 3 Database Lockouts 2 | . 1 1 . Manual 47 | . 17 22 8 Terminals 81 | . 19 36 26 Fabricators . | . . . . Repair Stations . | . . . . Recycling Units 3 | . 2 . 1 Scanalyzers 6 | . . 6 . Garrison Access . | . . . . Terminal Hacks 36 | . 9 16 11 Part Schematic 2 | . . . 2 Robot Analysis 8 | . 5 3 . Prototype ID Bank 11 | . 2 7 2 Open Door 4 | . . . 4 Branch Access Points 2 | . 1 1 . Alert Level 1 | . . 1 . Unreport Threat 3 | . . 2 1 Locate Traps 5 | . 1 2 2 Fabricator Hacks . | . . . . Repair Station Hacks . | . . . . Recycling Unit Hacks 1 | . . . 1 Report Inventory 1 | . . . 1 Scanalyzer 4 | . . 4 . Insert Component 2 | . . 2 . Analyze 2 | . . 2 . Garrison Access Hacks . | . . . . Unauthorized Hacks 8 | . 4 2 2 Terminals 6 | . 2 2 2 Botnet 6 | . 2 2 2 Fabricators . | . . . . Repair Stations . | . . . . Recycling Units 2 | . 2 . . Tunnel 2 | . 2 . . Scanalyzers . | . . . . Garrison Access . | . . . . Data Cores Recovered . | . . . . Used . | . . . . Hacking Detections 28 | . 7 10 11 Full Trace Events . | . . . . Feedback Events . | . . . . Feedback Blocked . | . . . . Robot Schematics Acquired . | . . . . Robots Built . | . . . . Authchips . | . . . . Time . | . . . . Total Robot Build Rating . | . . . . Part Schematics Acquired 4 | . . 2 2 Parts Built . | . . . . Authchips . | . . . . Time . | . . . . Total Part Build Rating . | . . . . Parts Repaired . | . . . . Time . | . . . . Parts Recycled . | . . . . Recycled Matter . | . . . . Retrieved Matter . | . . . . Retrieved Components . | . . . . Parts Scanalyzed 2 | . . 2 . Part Schematics Acquired 2 | . . 2 . Parts Damaged . | . . . . Bothacking | -11 -10 -9 -9 ------------ Run | Yrd Mat Mat Sto Used RIF Installer . | . . . . Robots Hacked . | . . . . Non-combat . | . . . . Combat . | . . . . Robot Hacks Applied . | . . . . Relay Couplers Released . | . . . . Fabnet Peak Effective % . | . . . . Robots Rewired . | . . . . Allies Hacked . | . . . . Hacks Repelled . | . . . . Allies | -11 -10 -9 -9 -------- Run | Yrd Mat Mat Sto Total Allies . | . . . . Largest Group . | . . . . Highest-Rated Group . | . . . . Highest-Rated Ally . | . . . . Total Orders . | . . . . Ally Attacks . | . . . . Total Damage . | . . . . Kills . | . . . . Allies Corrupted . | . . . . Allies Melted . | . . . . Intel | -11 -10 -9 -9 ------- Run | Yrd Mat Mat Sto Robot Analysis Total 8 | . 5 3 . Derelict Logs Recovered . | . . . . Drone Launches . | . . . . Drone Recoveries . | . . . . Exploration | -11 -10 -9 -9 ------------- Run | Yrd Mat Mat Sto Turns Passed 4272 | . 1375 1656 1241 Spaces Moved 2229 | 1 802 812 614 Core . | . . . . Treads 6 | . . 6 . Legs 304 | 1 303 . . Wheels 1919 | . 499 806 614 Hover . | . . . . Flight . | . . . . Fastest Speed 100 | 120 100 125 145 Average Speed 140 | 120 132 141 150 Slowest Speed 320 | 120 175 320 155 Overloaded Moves . | . . . . Propulsion Burnouts . | . . . . Robots Hopped . | . . . . Cave-ins Triggered . | . . . . Exploration Rate (%) 69 | 2 98 85 94 Regions Visited 3 Branch Regions 1 Pre-discovered Areas 3 | . 2 . 1 Known Exits Taken 1 | . . 1 . Unknown Exits Taken 2 | 1 1 . . Scrap Searched . | . . . . Spaces Dug 10 | . . . 10 Terrain Destroyed 33 | . . 5 28 Melee . | . . . . Projectile . | . . . . AOE 33 | . . 5 28 Terrain Rammed . | . . . . Walls Destroyed . | . . . . Machines Disabled . | . . . . Actions | -11 -10 -9 -9 --------- Run | Yrd Mat Mat Sto Total 3010 | . 978 1191 841 Wait 432 | . 44 248 140 Move 2226 | . 801 811 614 Hop . | . . . . Pick Up 53 | . 21 19 13 Fast Attach 9 | . 4 3 2 Attach 19 | . 5 8 6 Detach 2 | . . . 2 Swap 31 | . 8 16 7 Drop 50 | . 15 21 14 Fire 183 | . 77 63 43 Melee . | . . . . Ram . | . . . . Kick 3 | . 3 . . Crush 2 | . . 2 . Escape Stasis . | . . . . Rewire . | . . . . Trap . | . . . . Miscellaneous . | . . . . Route ------- -11/Scrapyard -10/Materials (discovered 5 exits: *Mat x3 / *Min x2) -9/Materials (discovered 5 exits: *Mat x2 / *Min / *Sto x2) -9/Storage (discovered 1 exit: *Mat) History --------- Turn | Location | Event 1 | -11/Scrapyard | Discovered new exit (range 0) 1 | -11/Scrapyard | Entered Materials 287 | -10/Materials | Discovered new exit (range 11) 300 | -10/Materials | Build established: Mutant 535 | -10/Materials | Lost 3 parts (1p1n1u) 551 | -10/Materials | Core integrity fell below 50% 638 | -10/Materials | Discovered new exit (range 7) 730 | -10/Materials | Core integrity fell below 20% 791 | -10/Materials | Discovered new exit (range 11) 996 | -10/Materials | Build established: Scavenger-Mutant 1029 | -10/Materials | Discovered new exit (range 16) 1194 | -10/Materials | Identified exit to Mines 1218 | -10/Materials | Discovered new exit (range 8) 1291 | -10/Materials | Central database locked down 1376 | -10/Materials | Entered another Materials area 1376 | -9/Materials | Evolved 2 slots: Weapon x2 1669 | -9/Materials | Build established: Gunner 1814 | -9/Materials | Discovered new exit (range 5) 1877 | -9/Materials | Identified exit to Mines 1877 | -9/Materials | Identified exit to Storage 2154 | -9/Materials | Build established: Scavenger-Gunner 2550 | -9/Materials | Discovered new exit (range 13) 2891 | -9/Materials | Central database locked down 3032 | -9/Materials | Entered Storage 3248 | -9/Storage | Garrison activated, responded to threat 3267 | -9/Storage | Core integrity fell below 50% 3600 | -9/Storage | Discovered new exit (range 10) 3615 | -9/Storage | Identified exit to Materials 4273 | -9/Storage | Self-destructed Last Messages --------------- 04139_ Acquired Unknown Storage. 04139_ Identified Hcp. Battery. 04140_ Dropped Hcp. Battery. 04142_ Acquired Imp. Heat Sink. 04144_ U-05 Engineer builds a Wall. 04144_ U-05 Engineer lays Concrete. 04149_ U-05 Engineer builds a Wall. 04149_ U-05 Engineer lays Concrete. 04153_ U-05 Engineer builds a Wall. 04153_ U-05 Engineer builds a Door. 04153_ U-05 Engineer lays Concrete. 04156_ U-05 Engineer builds a Wall. 04162_ U-05 Engineer lays Concrete. 04206_ Acquired 48 matter. 04222_ K-01 Serf cleans the Repair Station. 04234_ System corrupted: Matter fused (-8). 04239_ K-01 Serf cleans the Repair Station. 04273_ Connecting with Door Terminal... >>Open(Door) Sealed Heavy Doors opened. Map ----- +----------------------------------------------------+ | | | | | | | | | | | | | | | | | ######??????#############################???????? | | #??????# """ """ """ # * #???????? | | #??????# """ """ """ # #???????? | | ######## """ """ """ # """ """ """ #???????? | | + + # """ """ """ #???????? | | +##### ##### # """ """ """ #???????? | | #???# # #???????? | | #???##"T"######+#########+#######???????? | | #????###### #????????? | | #?????????# #????????? | | #???#####?# #????????? | | #####"T"### ##################????????? | | # #^^^##! !#????????????????????? | | ### # """ #^^^##! !#????????????????????? | | #?# # """ # #?! !?????????????????????? | | #?# # """ """ # #?! !?????????????????????? | | #####?# + """ + ### ##????????????????????? | | ??????# # !! R" # + @T#????????????????????? | | ??????# # =! """ # # ##????????????????????? | | ??????# # = + #####?????????????????????? | | #######+########### #?????????????????????????? | | # ##### ### #?????????????????????????? | | # # # #?????????????????????????? | | # # # #?????????????????????????? | | # # # #?????????????????????????? | | # # #% #?????????????????????????? | | # # """"" + #?????????????????????????? | | # # """"" # #?????????????????????????? | | # # """"" # #?????????????????????????? | | #####+############# #?????????????????????????? | | #??????# #?????????????????????????? | | #??????# ##########????????????????? | | #??????# # #????????????????? | | ##/#########??????# # """ #????????????????? | | # ###??????????# # """ #????????????????? | | # T#???????????# # """ #????????????????? | | ##" "###??????????# + %= #????????????????? | | #! ############ # """! #????????????????? | | #! !!## #%""" ##???????????????? | | #!!! !!## # """ #???????????????? | | #!!! !!## # ! ##???????????????? | | ######### ##############+#####????????????????? | +----------------------------------------------------+ Best States ------------- Heat Dissipation 42 Energy Generation 12 Energy Capacity 515 Matter Stores 300 Matter Capacity 300 Sight Range 16 Terrain Scan Density 10 Evasion (%) 55 Recoil Reduction 1 Authchip Count 1 Item Schematics ----------------- Wheel | -9/Materials | Scanalyzed Huge Storage Unit | -9/Materials | Scanalyzed Cesium-ion Thruster | -9/Storage | Hacked Imp. Aluminum Leg | -9/Storage | Hacked Robot Schematics ------------------ None Fabricated ------------ Nothing Alien Tech Used ----------------- None Achievements -------------- None Challenges ------------ None Game ------ Seed NullMagneticAirjet Manual? 0 Play Time 01:08:48 Cumulative 77.3 hours Start 2024.09.08 @ 16:11:04 End 2024.09.08 @ 17:33:50 Sessions 1 Manual Loads 0 Difficulty Rogue Special Mode None Game No. 45 Rogue 45 Adventurer 0 Explorer 0 Win Type - Total 0 Types 0/0/0/0/0/0/0/0/0 Lore% 26 Gallery% 28 Achievement% 33 Wizard Run 0 Options --------- Layout 0 ASCII 0 Keyboard 0 Movement Mouse Keybinds 0 Fullscreen 1 Font 16/SmallcapsGlow Map View 75x55 Zoom Use 85% Tactical HUD 1 Map Filters NONE Filters NONE Steam 1 RUN: 44b29898-0493-4472-9758-c11c8418839c